[Event "Titled Tuesday Blitz February 22 Early 2022"]
[White "Samaganova, Aleksandra"]
[Black "Wartiovaara, Oliver"]
[WhiteFideId "13800221"]
[BlackFideId "513024"]
[WhiteElo "1859"]
[BlackElo "1971"]
[Result "1-0"]
[Round "10"]
[TimeControl "180+1"]
[Date "2022.02.22"]
[WhiteClock "0:00:09"]
[BlackClock "0:00:09"]

1. c4 {[%clk 0:03:00]}  g6 {[%clk 0:02:57]} 2. Nc3 {[%clk 0:03:00]}  Nf6 {[%clk 0:02:53]} 3. g3 {[%clk 0:02:53]}  Bg7 {[%clk 0:02:52]} 4. Bg2 {[%clk 0:02:53]}  O-O {[%clk 0:02:51]} 5. e4 {[%clk 0:02:47]}  Nc6 {[%clk 0:02:47]} 6. Nge2 {[%clk 0:02:46]}  d6 {[%clk 0:02:37]} 7. O-O {[%clk 0:02:42]}  e5 {[%clk 0:02:35]} 8. d3 {[%clk 0:02:38]}  Nd7 {[%clk 0:02:27]} 9. f4 {[%clk 0:02:36]}  Nc5 {[%clk 0:02:24]} 10. f5 {[%clk 0:02:31]}  Nb4 {[%clk 0:02:16]} 11. Rf3 {[%clk 0:02:24]}  a5 {[%clk 0:01:51]} 12. a3 {[%clk 0:02:23]}  Nc6 {[%clk 0:01:51]} 13. Nd5 {[%clk 0:02:16]}  Nd4 {[%clk 0:01:42]} 14. Nxd4 {[%clk 0:02:11]}  exd4 {[%clk 0:01:42]} 15. f6 {[%clk 0:02:10]}  Bg4 {[%clk 0:01:39]} 16. fxg7 {[%clk 0:01:39]}  Kxg7 {[%clk 0:01:40]} 17. Qf1 {[%clk 0:01:24]}  Bxf3 {[%clk 0:01:28]} 18. Qxf3 {[%clk 0:01:23]}  f6 {[%clk 0:01:23]} 19. Nf4 {[%clk 0:01:05]}  a4 {[%clk 0:01:09]} 20. Bd2 {[%clk 0:00:58]}  Qe7 {[%clk 0:01:04]} 21. Rf1 {[%clk 0:00:50]}  c6 {[%clk 0:00:53]} 22. Bh3 {[%clk 0:00:45]}  Qe5 {[%clk 0:00:46]} 23. Bb4 {[%clk 0:00:42]}  Rae8 {[%clk 0:00:41]} 24. Bxc5 {[%clk 0:00:37]}  dxc5 {[%clk 0:00:42]} 25. Qd1 {[%clk 0:00:30]}  b5 {[%clk 0:00:37]} 26. cxb5 {[%clk 0:00:26]}  cxb5 {[%clk 0:00:38]} 27. Qc2 {[%clk 0:00:26]}  c4 {[%clk 0:00:20]} 28. dxc4 {[%clk 0:00:26]}  bxc4 {[%clk 0:00:19]} 29. Qxc4 {[%clk 0:00:24]}  Qxe4 {[%clk 0:00:20]} 30. Ne6+ {[%clk 0:00:18]}  Rxe6 {[%clk 0:00:16]} 31. Qxe6 {[%clk 0:00:18]}  Qc2 {[%clk 0:00:14]} 32. Rf2 {[%clk 0:00:10]}  Qc1+ {[%clk 0:00:14]} 33. Kg2 {[%clk 0:00:11]}  d3 {[%clk 0:00:13]} 34. Qd7+ {[%clk 0:00:09]}  Rf7 {[%clk 0:00:12]} 35. Qd4 {[%clk 0:00:09]}  Qc6+ {[%clk 0:00:08]} 36. Kg1 {[%clk 0:00:09]}  Qc1+ {[%clk 0:00:09]} 37. Bf1 {[%clk 0:00:09]} 1-0


[Site "https://www.chess.com"]

[Event "Titled Tuesday Blitz February 22 Early 2022"]
[White "Sanchez Alvares, Kelvin Antonio"]
[Black "Kim, Sergey"]
[WhiteFideId "3906680"]
[BlackFideId "13700570"]
[WhiteElo "2193"]
[BlackElo "2639"]
[Result "1/2-1/2"]
[Round "10"]
[TimeControl "180+1"]
[Date "2022.02.22"]
[WhiteClock "0:00:06"]
[BlackClock "0:00:12"]

1. d4 {[%clk 0:03:00]}  Nf6 {[%clk 0:02:59]} 2. c4 {[%clk 0:03:01]}  g6 {[%clk 0:02:59]} 3. Nf3 {[%clk 0:03:01]}  Bg7 {[%clk 0:03:00]} 4. Nc3 {[%clk 0:03:01]}  d6 {[%clk 0:03:01]} 5. e4 {[%clk 0:03:01]}  O-O {[%clk 0:03:01]} 6. Be2 {[%clk 0:03:02]}  e5 {[%clk 0:03:01]} 7. O-O {[%clk 0:03:01]}  exd4 {[%clk 0:03:01]} 8. Nxd4 {[%clk 0:03:01]}  Re8 {[%clk 0:03:01]} 9. f3 {[%clk 0:03:01]}  Nbd7 {[%clk 0:03:01]} 10. Bg5 {[%clk 0:02:59]}  c6 {[%clk 0:03:01]} 11. Kh1 {[%clk 0:02:58]}  a5 {[%clk 0:03:00]} 12. Qd2 {[%clk 0:02:58]}  a4 {[%clk 0:03:00]} 13. Rad1 {[%clk 0:02:57]}  Qa5 {[%clk 0:02:59]} 14. Nc2 {[%clk 0:02:52]}  Re6 {[%clk 0:02:58]} 15. Bf4 {[%clk 0:02:49]}  Ne5 {[%clk 0:02:53]} 16. Nd4 {[%clk 0:02:45]}  Re8 {[%clk 0:02:53]} 17. Nc2 {[%clk 0:02:45]}  Re6 {[%clk 0:02:42]} 18. Be3 {[%clk 0:02:41]}  Bf8 {[%clk 0:02:34]} 19. Nd4 {[%clk 0:02:34]}  Re8 {[%clk 0:02:33]} 20. Bg1 {[%clk 0:02:28]}  Ned7 {[%clk 0:02:31]} 21. Qc2 {[%clk 0:02:25]}  Nc5 {[%clk 0:02:30]} 22. Rfe1 {[%clk 0:02:23]}  Nfd7 {[%clk 0:02:29]} 23. Bf1 {[%clk 0:02:22]}  Ne5 {[%clk 0:02:27]} 24. f4 {[%clk 0:02:20]}  Ned7 {[%clk 0:02:26]} 25. Nf3 {[%clk 0:02:20]}  Nf6 {[%clk 0:02:22]} 26. e5 {[%clk 0:02:20]}  dxe5 {[%clk 0:02:20]} 27. fxe5 {[%clk 0:02:20]}  Bf5 {[%clk 0:02:09]} 28. Qf2 {[%clk 0:02:15]}  Ng4 {[%clk 0:02:07]} 29. Qg3 {[%clk 0:02:12]}  a3 {[%clk 0:02:05]} 30. Nd4 {[%clk 0:02:08]}  Bc8 {[%clk 0:02:03]} 31. b3 {[%clk 0:02:05]}  Bg7 {[%clk 0:01:55]} 32. Nf3 {[%clk 0:01:49]}  Nxb3 {[%clk 0:01:43]} 33. Ne4 {[%clk 0:01:44]}  Bf5 {[%clk 0:01:28]} 34. Nd6 {[%clk 0:01:43]}  Rxe5 {[%clk 0:01:18]} 35. Nxe5 {[%clk 0:01:40]}  Bxe5 {[%clk 0:01:17]} 36. Qxb3 {[%clk 0:01:32]}  Bxd6 {[%clk 0:01:14]} 37. h3 {[%clk 0:01:15]}  Ne5 {[%clk 0:00:48]} 38. c5 {[%clk 0:01:09]}  Bc7 {[%clk 0:00:45]} 39. Bd4 {[%clk 0:00:54]}  Be6 {[%clk 0:00:42]} 40. Qg3 {[%clk 0:00:49]}  Nd7 {[%clk 0:00:37]} 41. Qh4 {[%clk 0:00:45]}  Bd8 {[%clk 0:00:32]} 42. Qh6 {[%clk 0:00:38]}  Bf6 {[%clk 0:00:29]} 43. Rxe6 {[%clk 0:00:16]}  fxe6 {[%clk 0:00:28]} 44. Bc4 {[%clk 0:00:16]}  Re8 {[%clk 0:00:27]} 45. Bxf6 {[%clk 0:00:12]}  Nxf6 {[%clk 0:00:26]} 46. Qf4 {[%clk 0:00:12]}  Kg7 {[%clk 0:00:26]} 47. Qe5 {[%clk 0:00:11]}  Rd8 {[%clk 0:00:19]} 48. Rf1 {[%clk 0:00:10]}  Rf8 {[%clk 0:00:18]} 49. Bxe6 {[%clk 0:00:07]}  Qd8 {[%clk 0:00:17]} 50. Bb3 {[%clk 0:00:06]}  Re8 {[%clk 0:00:17]} 51. Qf4 {[%clk 0:00:04]}  Re4 {[%clk 0:00:16]} 52. Qc1 {[%clk 0:00:04]}  Qe7 {[%clk 0:00:16]} 53. Qxa3 {[%clk 0:00:03]}  Re1 {[%clk 0:00:15]} 54. Rxe1 {[%clk 0:00:03]}  Qxe1+ {[%clk 0:00:15]} 55. Kh2 {[%clk 0:00:04]}  Qe5+ {[%clk 0:00:15]} 56. Kg1 {[%clk 0:00:05]}  Qe1+ {[%clk 0:00:15]} 57. Kh2 {[%clk 0:00:05]}  Qe5+ {[%clk 0:00:13]} 58. Kg1 {[%clk 0:00:05]}  Qe1+ {[%clk 0:00:12]} 59. Kh2 {[%clk 0:00:06]} 1/2-1/2


[Site "https://www.chess.com"]

[Event "Titled Tuesday Blitz February 22 Early 2022"]
[White "Seifert, Henryk"]
[Black "Sanchez, Robert"]
[WhiteFideId "1100963"]
[BlackFideId "2034360"]
[WhiteElo "2120"]
[BlackElo "2246"]
[Result "1/2-1/2"]
[Round "10"]
[TimeControl "180+1"]
[Date "2022.02.22"]
[WhiteClock "0:00:05"]
[BlackClock "0:01:13"]

1. e4 {[%clk 0:03:00]}  e6 {[%clk 0:02:46]} 2. d4 {[%clk 0:02:59]}  d5 {[%clk 0:02:45]} 3. Nd2 {[%clk 0:02:59]}  Nf6 {[%clk 0:02:45]} 4. e5 {[%clk 0:02:58]}  Nfd7 {[%clk 0:02:45]} 5. c3 {[%clk 0:02:58]}  c5 {[%clk 0:02:45]} 6. Bd3 {[%clk 0:02:58]}  Nc6 {[%clk 0:02:45]} 7. Ne2 {[%clk 0:02:58]}  cxd4 {[%clk 0:02:45]} 8. cxd4 {[%clk 0:02:57]}  f6 {[%clk 0:02:46]} 9. exf6 {[%clk 0:02:56]}  Nxf6 {[%clk 0:02:47]} 10. Nf3 {[%clk 0:02:55]}  Bd6 {[%clk 0:02:47]} 11. Bf4 {[%clk 0:02:55]}  Bxf4 {[%clk 0:02:43]} 12. Nxf4 {[%clk 0:02:55]}  O-O {[%clk 0:02:41]} 13. O-O {[%clk 0:02:48]}  Ne4 {[%clk 0:02:39]} 14. Ne2 {[%clk 0:02:47]}  Ng5 {[%clk 0:02:24]} 15. Nxg5 {[%clk 0:02:39]}  Qxg5 {[%clk 0:02:17]} 16. f4 {[%clk 0:02:35]}  Qf6 {[%clk 0:02:13]} 17. Bc2 {[%clk 0:02:21]}  Bd7 {[%clk 0:02:08]} 18. Qd3 {[%clk 0:02:16]}  g6 {[%clk 0:02:08]} 19. a3 {[%clk 0:02:16]}  Rac8 {[%clk 0:02:07]} 20. Rac1 {[%clk 0:02:05]}  Na5 {[%clk 0:02:02]} 21. b3 {[%clk 0:01:47]}  Qe7 {[%clk 0:02:01]} 22. Ra1 {[%clk 0:01:16]}  Rc7 {[%clk 0:01:57]} 23. Qd2 {[%clk 0:01:11]}  b6 {[%clk 0:01:51]} 24. Rfc1 {[%clk 0:01:07]}  Rfc8 {[%clk 0:01:51]} 25. g3 {[%clk 0:00:47]}  Qf6 {[%clk 0:01:49]} 26. Ra2 {[%clk 0:00:37]}  Bb5 {[%clk 0:01:47]} 27. Bd3 {[%clk 0:00:13]}  Rxc1+ {[%clk 0:01:44]} 28. Nxc1 {[%clk 0:00:12]}  Qxd4+ {[%clk 0:01:44]} 29. Kg2 {[%clk 0:00:09]}  Rxc1 {[%clk 0:01:28]} 30. Qxc1 {[%clk 0:00:08]}  Bxd3 {[%clk 0:01:28]} 31. Qc8+ {[%clk 0:00:07]}  Kg7 {[%clk 0:01:26]} 32. Qd7+ {[%clk 0:00:06]}  Kh6 {[%clk 0:01:26]} 33. Qe7 {[%clk 0:00:04]}  Be4+ {[%clk 0:01:24]} 34. Kh3 {[%clk 0:00:04]}  Bf5+ {[%clk 0:01:24]} 35. Kh4 {[%clk 0:00:03]}  Nxb3 {[%clk 0:01:13]} 36. Qg5+ {[%clk 0:00:03]}  Kg7 {[%clk 0:01:13]} 37. Qe7+ {[%clk 0:00:04]}  Kg8 {[%clk 0:01:12]} 38. Qe8+ {[%clk 0:00:04]}  Kg7 {[%clk 0:01:12]} 39. Qe7+ {[%clk 0:00:04]}  Kh6 {[%clk 0:01:12]} 40. Qg5+ {[%clk 0:00:04]}  Kg7 {[%clk 0:01:13]} 41. Qe7+ {[%clk 0:00:05]} 1/2-1/2


[Site "https://www.chess.com"]

[Event "Titled Tuesday Blitz February 22 Early 2022"]
[White "Shton, Roman"]
[Black "Aaditya Dhingra"]
[WhiteFideId "14137461"]
[BlackFideId "25678191"]
[WhiteElo "2038"]
[BlackElo "1789"]
[Result "0-1"]
[Round "10"]
[TimeControl "180+1"]
[Date "2022.02.22"]
[WhiteClock "0:01:06"]
[BlackClock "0:00:52"]

1. d4 {[%clk 0:02:56]}  Nf6 {[%clk 0:02:58]} 2. Nf3 {[%clk 0:02:55]}  e6 {[%clk 0:02:56]} 3. g3 {[%clk 0:02:55]}  c5 {[%clk 0:02:55]} 4. Bg2 {[%clk 0:02:55]}  Nc6 {[%clk 0:02:54]} 5. O-O {[%clk 0:02:55]}  b6 {[%clk 0:02:53]} 6. Bg5 {[%clk 0:02:54]}  d5 {[%clk 0:02:50]} 7. Ne5 {[%clk 0:02:50]}  Bb7 {[%clk 0:02:48]} 8. e3 {[%clk 0:02:48]}  h6 {[%clk 0:02:46]} 9. Bxf6 {[%clk 0:02:46]}  gxf6 {[%clk 0:02:39]} 10. Nxc6 {[%clk 0:02:41]}  Bxc6 {[%clk 0:02:40]} 11. c4 {[%clk 0:02:41]}  Qd7 {[%clk 0:02:31]} 12. dxc5 {[%clk 0:02:32]}  dxc4 {[%clk 0:02:21]} 13. Qxd7+ {[%clk 0:02:29]}  Kxd7 {[%clk 0:02:20]} 14. Rd1+ {[%clk 0:02:29]}  Kc7 {[%clk 0:02:20]} 15. cxb6+ {[%clk 0:02:29]}  axb6 {[%clk 0:02:20]} 16. Bxc6 {[%clk 0:02:21]}  Kxc6 {[%clk 0:02:19]} 17. Nd2 {[%clk 0:02:22]}  b5 {[%clk 0:02:16]} 18. a4 {[%clk 0:02:19]}  Bb4 {[%clk 0:02:14]} 19. axb5+ {[%clk 0:02:16]}  Kxb5 {[%clk 0:02:12]} 20. Ne4 {[%clk 0:02:17]}  f5 {[%clk 0:02:09]} 21. Nc3+ {[%clk 0:02:10]}  Kc6 {[%clk 0:01:57]} 22. Rxa8 {[%clk 0:02:05]}  Rxa8 {[%clk 0:01:55]} 23. Rd4 {[%clk 0:02:05]}  Kc5 {[%clk 0:01:51]} 24. Ne2 {[%clk 0:01:55]}  Ra2 {[%clk 0:01:47]} 25. Nc3 {[%clk 0:01:38]}  Bxc3 {[%clk 0:01:39]} 26. bxc3 {[%clk 0:01:39]}  Rc2 {[%clk 0:01:32]} 27. Rd7 {[%clk 0:01:38]}  Rxc3 {[%clk 0:01:31]} 28. Rxf7 {[%clk 0:01:36]}  Rc1+ {[%clk 0:01:30]} 29. Kg2 {[%clk 0:01:36]}  c3 {[%clk 0:01:30]} 30. Rc7+ {[%clk 0:01:35]}  Kb4 {[%clk 0:01:27]} 31. e4 {[%clk 0:01:30]}  fxe4 {[%clk 0:01:24]} 32. h4 {[%clk 0:01:27]}  Kb3 {[%clk 0:01:14]} 33. g4 {[%clk 0:01:26]}  Ra1 {[%clk 0:01:06]} 34. Rb7+ {[%clk 0:01:25]}  Kc4 {[%clk 0:01:01]} 35. Rc7+ {[%clk 0:01:24]}  Kd3 {[%clk 0:01:01]} 36. g5 {[%clk 0:01:20]}  hxg5 {[%clk 0:01:00]} 37. hxg5 {[%clk 0:01:21]}  Ra5 {[%clk 0:00:59]} 38. Rd7+ {[%clk 0:01:16]}  Ke2 {[%clk 0:00:58]} 39. Rc7 {[%clk 0:01:05]}  Rxg5+ {[%clk 0:00:56]} 40. Kh3 {[%clk 0:01:06]}  Kd2 {[%clk 0:00:53]} 41. Rd7+ {[%clk 0:01:06]}  Rd5 {[%clk 0:00:52]} 0-1


[Site "https://www.chess.com"]

[Event "Titled Tuesday Blitz February 22 Early 2022"]
[White "Slugin, Sergey"]
[Black "Pavlidou, Ekaterini"]
[WhiteFideId "4122569"]
[BlackFideId "4213262"]
[WhiteElo "2358"]
[BlackElo "2127"]
[Result "1-0"]
[Round "10"]
[TimeControl "180+1"]
[Date "2022.02.22"]
[WhiteClock "0:00:12"]
[BlackClock "0:00:41"]

1. e4 {[%clk 0:02:57]}  c5 {[%clk 0:02:59]} 2. Nf3 {[%clk 0:02:58]}  Nc6 {[%clk 0:02:59]} 3. d4 {[%clk 0:02:57]}  cxd4 {[%clk 0:02:58]} 4. Nxd4 {[%clk 0:02:57]}  Nf6 {[%clk 0:02:58]} 5. Nc3 {[%clk 0:02:57]}  e6 {[%clk 0:02:58]} 6. Ndb5 {[%clk 0:02:35]}  Bc5 {[%clk 0:02:54]} 7. Bf4 {[%clk 0:02:29]}  O-O {[%clk 0:02:54]} 8. Bc7 {[%clk 0:02:26]}  Qe7 {[%clk 0:02:54]} 9. Bd6 {[%clk 0:02:24]}  Bxd6 {[%clk 0:02:55]} 10. Qxd6 {[%clk 0:02:23]}  Qd8 {[%clk 0:02:55]} 11. Qc7 {[%clk 0:02:13]}  Qe7 {[%clk 0:02:52]} 12. O-O-O {[%clk 0:02:04]}  a6 {[%clk 0:02:49]} 13. Nd6 {[%clk 0:01:54]}  b5 {[%clk 0:02:43]} 14. f3 {[%clk 0:01:48]}  b4 {[%clk 0:02:38]} 15. Na4 {[%clk 0:01:45]}  Ne8 {[%clk 0:02:30]} 16. Nxc8 {[%clk 0:01:42]}  Nxc7 {[%clk 0:02:30]} 17. Nxe7+ {[%clk 0:01:42]}  Nxe7 {[%clk 0:02:13]} 18. Rxd7 {[%clk 0:01:41]}  Ncd5 {[%clk 0:02:13]} 19. exd5 {[%clk 0:01:39]}  Nxd5 {[%clk 0:02:14]} 20. Bc4 {[%clk 0:01:38]}  Ne3 {[%clk 0:02:13]} 21. Bb3 {[%clk 0:01:17]}  Nxg2 {[%clk 0:02:10]} 22. Rhd1 {[%clk 0:01:11]}  Nh4 {[%clk 0:02:07]} 23. R1d3 {[%clk 0:01:10]}  Ng6 {[%clk 0:02:04]} 24. Rb7 {[%clk 0:01:09]}  a5 {[%clk 0:01:58]} 25. Nb6 {[%clk 0:00:59]}  Rab8 {[%clk 0:01:44]} 26. Rxb8 {[%clk 0:00:58]}  Rxb8 {[%clk 0:01:44]} 27. Nd7 {[%clk 0:00:58]}  Ra8 {[%clk 0:01:42]} 28. a4 {[%clk 0:00:56]}  Nf4 {[%clk 0:01:39]} 29. Rd2 {[%clk 0:00:53]}  g5 {[%clk 0:01:37]} 30. c4 {[%clk 0:00:43]}  Kg7 {[%clk 0:01:34]} 31. Nb6 {[%clk 0:00:36]}  Rb8 {[%clk 0:01:31]} 32. c5 {[%clk 0:00:36]}  Rb7 {[%clk 0:01:22]} 33. Kb1 {[%clk 0:00:27]}  Rc7 {[%clk 0:01:21]} 34. Rc2 {[%clk 0:00:20]}  Kf6 {[%clk 0:01:18]} 35. c6 {[%clk 0:00:18]}  Ke7 {[%clk 0:01:10]} 36. Na8 {[%clk 0:00:18]}  Rc8 {[%clk 0:01:08]} 37. c7 {[%clk 0:00:19]}  Kd6 {[%clk 0:01:05]} 38. Rd2+ {[%clk 0:00:19]}  Kc6 {[%clk 0:01:03]} 39. Rd8 {[%clk 0:00:15]}  Kb7 {[%clk 0:01:04]} 40. Bc4 {[%clk 0:00:11]}  Nd5 {[%clk 0:00:43]} 41. Ba6+ {[%clk 0:00:11]}  Kxa6 {[%clk 0:00:41]} 42. Rxc8 {[%clk 0:00:12]} 1-0


[Site "https://www.chess.com"]

[Event "Titled Tuesday Blitz February 22 Early 2022"]
[White "Talibov, Shiroghlan"]
[Black "Kobalia, Mikhail"]
[WhiteFideId "13429078"]
[BlackFideId "4119150"]
[WhiteElo "2070"]
[BlackElo "2667"]
[Result "1-0"]
[Round "10"]
[TimeControl "180+1"]
[Date "2022.02.22"]
[WhiteClock "0:00:15"]
[BlackClock "0:00:03"]

1. c4 {[%clk 0:03:00]}  c6 {[%clk 0:02:59]} 2. Nc3 {[%clk 0:02:57]}  d5 {[%clk 0:02:59]} 3. d4 {[%clk 0:02:58]}  Nf6 {[%clk 0:02:59]} 4. Nf3 {[%clk 0:02:58]}  e6 {[%clk 0:02:59]} 5. e3 {[%clk 0:02:59]}  Nbd7 {[%clk 0:02:58]} 6. Qc2 {[%clk 0:03:00]}  Bd6 {[%clk 0:02:57]} 7. Bd3 {[%clk 0:03:00]}  O-O {[%clk 0:02:57]} 8. O-O {[%clk 0:03:00]}  dxc4 {[%clk 0:02:56]} 9. Bxc4 {[%clk 0:03:01]}  e5 {[%clk 0:02:56]} 10. Rd1 {[%clk 0:02:57]}  Qe7 {[%clk 0:02:55]} 11. Bb3 {[%clk 0:02:44]}  a5 {[%clk 0:02:53]} 12. a3 {[%clk 0:02:43]}  Bc7 {[%clk 0:02:49]} 13. h3 {[%clk 0:02:28]}  exd4 {[%clk 0:02:39]} 14. exd4 {[%clk 0:02:28]}  Nb6 {[%clk 0:02:28]} 15. Bg5 {[%clk 0:02:28]}  Qd6 {[%clk 0:02:27]} 16. d5 {[%clk 0:02:16]}  Nfxd5 {[%clk 0:01:43]} 17. Bxd5 {[%clk 0:02:13]}  Nxd5 {[%clk 0:01:43]} 18. Rxd5 {[%clk 0:02:13]}  cxd5 {[%clk 0:01:43]} 19. Nb5 {[%clk 0:02:14]}  Qc6 {[%clk 0:01:43]} 20. Qxc6 {[%clk 0:02:11]}  bxc6 {[%clk 0:01:43]} 21. Nxc7 {[%clk 0:02:12]}  Ra7 {[%clk 0:01:43]} 22. Bf4 {[%clk 0:02:12]}  Bd7 {[%clk 0:01:40]} 23. Rc1 {[%clk 0:02:10]}  Rc8 {[%clk 0:01:38]} 24. Nd4 {[%clk 0:02:08]}  Raxc7 {[%clk 0:01:23]} 25. Bxc7 {[%clk 0:02:08]}  Rxc7 {[%clk 0:01:23]} 26. b4 {[%clk 0:02:06]}  axb4 {[%clk 0:01:18]} 27. axb4 {[%clk 0:02:07]}  h5 {[%clk 0:01:11]} 28. b5 {[%clk 0:01:58]}  c5 {[%clk 0:01:07]} 29. b6 {[%clk 0:01:58]}  Rb7 {[%clk 0:01:07]} 30. Rxc5 {[%clk 0:01:58]}  Rxb6 {[%clk 0:00:34]} 31. Rxd5 {[%clk 0:01:57]}  Be6 {[%clk 0:00:32]} 32. Rxh5 {[%clk 0:01:54]}  Rd6 {[%clk 0:00:32]} 33. Nf3 {[%clk 0:01:46]}  Rd1+ {[%clk 0:00:30]} 34. Kh2 {[%clk 0:01:46]}  Bd5 {[%clk 0:00:30]} 35. Kg3 {[%clk 0:01:40]}  Bxf3 {[%clk 0:00:27]} 36. Kxf3 {[%clk 0:01:41]}  g6 {[%clk 0:00:27]} 37. Re5 {[%clk 0:01:40]}  Kg7 {[%clk 0:00:27]} 38. h4 {[%clk 0:01:38]}  Ra1 {[%clk 0:00:26]} 39. Re2 {[%clk 0:01:36]}  Ra3+ {[%clk 0:00:25]} 40. Re3 {[%clk 0:01:36]}  Ra4 {[%clk 0:00:25]} 41. g3 {[%clk 0:01:36]}  Rb4 {[%clk 0:00:25]} 42. Re4 {[%clk 0:01:35]}  Rb3+ {[%clk 0:00:25]} 43. Kf4 {[%clk 0:01:32]}  Rb2 {[%clk 0:00:25]} 44. f3 {[%clk 0:01:31]}  Rh2 {[%clk 0:00:25]} 45. Ra4 {[%clk 0:01:27]}  Rh1 {[%clk 0:00:25]} 46. Ra5 {[%clk 0:01:25]}  Rh2 {[%clk 0:00:23]} 47. Kg4 {[%clk 0:01:20]}  Rh1 {[%clk 0:00:23]} 48. Rg5 {[%clk 0:01:14]}  f5+ {[%clk 0:00:21]} 49. Kf4 {[%clk 0:01:13]}  Kf6 {[%clk 0:00:21]} 50. Ke3 {[%clk 0:01:06]}  Rh2 {[%clk 0:00:20]} 51. f4 {[%clk 0:01:02]}  Rh1 {[%clk 0:00:19]} 52. Kf2 {[%clk 0:00:57]}  Rh2+ {[%clk 0:00:19]} 53. Kf3 {[%clk 0:00:57]}  Kf7 {[%clk 0:00:17]} 54. Ke3 {[%clk 0:00:50]}  Kf6 {[%clk 0:00:17]} 55. Kf3 {[%clk 0:00:39]}  Kf7 {[%clk 0:00:16]} 56. Ke3 {[%clk 0:00:20]}  Kf6 {[%clk 0:00:15]} 57. Kd4 {[%clk 0:00:20]}  Rh3 {[%clk 0:00:14]} 58. Kd5 {[%clk 0:00:20]}  Rh1 {[%clk 0:00:14]} 59. Kc6 {[%clk 0:00:19]}  Rc1+ {[%clk 0:00:13]} 60. Kd7 {[%clk 0:00:19]}  Rh1 {[%clk 0:00:12]} 61. Ke8 {[%clk 0:00:16]}  Kg7 {[%clk 0:00:12]} 62. h5 {[%clk 0:00:15]}  Rxh5 {[%clk 0:00:03]} 63. Rxh5 {[%clk 0:00:15]}  gxh5 {[%clk 0:00:03]} 64. Ke7 {[%clk 0:00:15]} 1-0


[Site "https://www.chess.com"]

[Event "Titled Tuesday Blitz February 22 Early 2022"]
[White "Tasev, Dejan"]
[Black "Nur-Mukhametova, Alisa"]
[WhiteFideId "936618"]
[BlackFideId "54117739"]
[WhiteElo "2253"]
[BlackElo "2015"]
[Result "1-0"]
[Round "10"]
[TimeControl "180+1"]
[Date "2022.02.22"]
[WhiteClock "0:00:37"]
[BlackClock "0:00:11"]

1. e4 {[%clk 0:02:59]}  c5 {[%clk 0:02:59]} 2. Nf3 {[%clk 0:02:59]}  e6 {[%clk 0:03:00]} 3. b3 {[%clk 0:02:59]}  Nf6 {[%clk 0:02:58]} 4. e5 {[%clk 0:02:58]}  Nd5 {[%clk 0:02:58]} 5. Bb2 {[%clk 0:02:58]}  b6 {[%clk 0:02:57]} 6. g3 {[%clk 0:02:57]}  Bb7 {[%clk 0:02:57]} 7. Bg2 {[%clk 0:02:58]}  Be7 {[%clk 0:02:54]} 8. O-O {[%clk 0:02:57]}  Nc6 {[%clk 0:02:52]} 9. Na3 {[%clk 0:02:57]}  O-O {[%clk 0:02:48]} 10. d3 {[%clk 0:02:56]}  d6 {[%clk 0:02:46]} 11. exd6 {[%clk 0:02:53]}  Qxd6 {[%clk 0:02:45]} 12. Nc4 {[%clk 0:02:52]}  Qc7 {[%clk 0:02:45]} 13. a4 {[%clk 0:02:51]}  a6 {[%clk 0:02:40]} 14. Re1 {[%clk 0:02:50]}  Bf6 {[%clk 0:02:40]} 15. Bxf6 {[%clk 0:02:49]}  Nxf6 {[%clk 0:02:39]} 16. Nfe5 {[%clk 0:02:45]}  Nxe5 {[%clk 0:02:38]} 17. Bxb7 {[%clk 0:02:41]}  Qxb7 {[%clk 0:02:39]} 18. Rxe5 {[%clk 0:02:41]}  Qc7 {[%clk 0:02:27]} 19. Qe2 {[%clk 0:02:36]}  h6 {[%clk 0:02:22]} 20. a5 {[%clk 0:02:27]}  b5 {[%clk 0:02:21]} 21. Nb6 {[%clk 0:02:27]}  Rad8 {[%clk 0:02:07]} 22. Re1 {[%clk 0:02:25]}  Nd7 {[%clk 0:02:04]} 23. Nxd7 {[%clk 0:02:25]}  Rxd7 {[%clk 0:02:04]} 24. Qd2 {[%clk 0:02:14]}  c4 {[%clk 0:01:55]} 25. bxc4 {[%clk 0:02:07]}  bxc4 {[%clk 0:01:55]} 26. d4 {[%clk 0:02:08]}  c3 {[%clk 0:01:55]} 27. Qd3 {[%clk 0:02:05]}  Rfd8 {[%clk 0:01:52]} 28. Qxa6 {[%clk 0:01:57]}  Rxd4 {[%clk 0:01:47]} 29. Qb5 {[%clk 0:01:47]}  Rb8 {[%clk 0:01:39]} 30. Qc5 {[%clk 0:01:42]}  Qxc5 {[%clk 0:01:28]} 31. Rxc5 {[%clk 0:01:43]}  Ra4 {[%clk 0:01:26]} 32. Re3 {[%clk 0:01:29]}  Ra8 {[%clk 0:01:22]} 33. Rexc3 {[%clk 0:01:29]}  R4xa5 {[%clk 0:01:19]} 34. Rxa5 {[%clk 0:01:28]}  Rxa5 {[%clk 0:01:19]} 35. h4 {[%clk 0:01:27]}  h5 {[%clk 0:01:19]} 36. Kg2 {[%clk 0:01:27]}  g6 {[%clk 0:01:18]} 37. Kf3 {[%clk 0:01:25]}  Kg7 {[%clk 0:01:13]} 38. Ke3 {[%clk 0:01:24]}  e5 {[%clk 0:01:12]} 39. Rc7 {[%clk 0:01:21]}  Kf6 {[%clk 0:01:00]} 40. c4 {[%clk 0:01:21]}  Ke6 {[%clk 0:00:57]} 41. Ke4 {[%clk 0:01:16]}  f5+ {[%clk 0:00:35]} 42. Ke3 {[%clk 0:01:14]}  Ra3+ {[%clk 0:00:35]} 43. Ke2 {[%clk 0:01:13]}  Ra2+ {[%clk 0:00:35]} 44. Kf1 {[%clk 0:01:12]}  Rc2 {[%clk 0:00:35]} 45. Rc6+ {[%clk 0:01:11]}  Kf7 {[%clk 0:00:35]} 46. c5 {[%clk 0:01:11]}  Kg7 {[%clk 0:00:30]} 47. Ke1 {[%clk 0:01:11]}  Kf7 {[%clk 0:00:29]} 48. Rc7+ {[%clk 0:01:09]}  Ke6 {[%clk 0:00:28]} 49. Rc6+ {[%clk 0:01:05]}  Kf7 {[%clk 0:00:28]} 50. Kf1 {[%clk 0:01:00]}  Rc1+ {[%clk 0:00:25]} 51. Ke2 {[%clk 0:00:58]}  Rc2+ {[%clk 0:00:26]} 52. Ke3 {[%clk 0:00:57]}  Kg7 {[%clk 0:00:20]} 53. f3 {[%clk 0:00:54]}  Rc3+ {[%clk 0:00:19]} 54. Ke2 {[%clk 0:00:53]}  Kf7 {[%clk 0:00:18]} 55. Rc7+ {[%clk 0:00:52]}  Kf6 {[%clk 0:00:19]} 56. c6 {[%clk 0:00:51]}  Ke6 {[%clk 0:00:18]} 57. Rc8 {[%clk 0:00:49]}  Kd6 {[%clk 0:00:18]} 58. Rg8 {[%clk 0:00:49]}  Rc2+ {[%clk 0:00:16]} 59. Ke3 {[%clk 0:00:49]}  Rc3+ {[%clk 0:00:16]} 60. Kf2 {[%clk 0:00:49]}  Rc2+ {[%clk 0:00:17]} 61. Kg1 {[%clk 0:00:48]}  Rc1+ {[%clk 0:00:17]} 62. Kg2 {[%clk 0:00:49]}  Rc2+ {[%clk 0:00:18]} 63. Kh3 {[%clk 0:00:49]}  Rf2 {[%clk 0:00:18]} 64. Rxg6+ {[%clk 0:00:49]}  Kc7 {[%clk 0:00:18]} 65. Re6 {[%clk 0:00:47]}  Rxf3 {[%clk 0:00:16]} 66. Rxe5 {[%clk 0:00:47]}  Kxc6 {[%clk 0:00:16]} 67. Kg2 {[%clk 0:00:45]}  Kd6 {[%clk 0:00:15]} 68. Ra5 {[%clk 0:00:40]}  Rb3 {[%clk 0:00:11]} 69. Rxf5 {[%clk 0:00:40]}  Rb2+ {[%clk 0:00:11]} 70. Kh3 {[%clk 0:00:40]}  Ke6 {[%clk 0:00:11]} 71. Rxh5 {[%clk 0:00:40]}  Kf6 {[%clk 0:00:11]} 72. Ra5 {[%clk 0:00:40]}  Kg6 {[%clk 0:00:11]} 73. Ra6+ {[%clk 0:00:39]}  Kg7 {[%clk 0:00:12]} 74. h5 {[%clk 0:00:36]}  Kh7 {[%clk 0:00:11]} 75. Kh4 {[%clk 0:00:37]}  Rh2+ {[%clk 0:00:11]} 76. Kg5 {[%clk 0:00:37]} 1-0


[Site "https://www.chess.com"]